bitfinex-derivatives/quotes_BNBF0:USTF0_20250413
["timestamp","ask_amount","ask_price","bid_price","bid_amount"]
[1744536094765,0.30982516,593.96,592.8,0.33738191]
[1744536096059,0.33672868,593.95,592.8,0.33738191]
[1744536096259,0.30982516,593.94,592.8,0.33738191]
[1744536097163,0.64655951,593.94,592.8,0.33738191]
[1744536097459,0.30982516,593.93,592.8,0.33738191]
[1744536097663,0.60326204,593.93,592.8,0.33738191]
[1744536097964,0.30982516,593.92,592.8,0.33738191]
[1744536098266,0.33675135,593.91,592.8,0.33738191]
[1744536098459,0.30989094,593.9,592.8,0.33738191]
[1744536098658,0.64664796,593.9,592.8,0.33738191]
[1744536098859,0.64665364,593.89,592.8,0.33738191]
[1744536099163,0.64665931,593.88,592.8,0.33738191]
[1744536099360,0.64666498,593.87,592.8,0.33738191]
[1744536099563,0.30989094,593.86,592.8,0.33738191]
[1744536101565,0.30987191,593.85,592.8,0.33738191]
[1744536101766,0.30987191,593.84,592.8,0.33738191]
[1744536102066,0.30987191,593.83,592.8,0.33738191]
[1744536102267,0.30987191,593.86,592.8,0.33738191]
[1744536102568,0.30987191,593.85,592.8,0.33738191]
[1744536102762,0.30987191,593.84,592.8,0.33738191]
[1744536102966,0.30987191,593.86,592.8,0.33738191]
[1744536103163,0.30987187,593.85,592.8,0.33738191]
[1744536103361,0.30987187,593.84,592.8,0.33738191]
[1744536103562,0.30987187,593.86,592.8,0.33738191]
[1744536103765,0.29345915,593.84,592.8,0.33738191]
[1744536103962,0.30987187,593.83,592.8,0.33738191]
[1744536105562,0.30987187,593.86,592.8,0.33738191]
[1744536105761,0.29346286,593.82,592.8,0.33738191]
[1744536105965,0.30987187,593.81,592.8,0.33738191]
[1744536111573,0.30987187,593.86,592.8,0.33738191]
[1744536111871,0.30987187,593.85,592.8,0.33738191]
[1744536112071,0.30987187,593.84,592.8,0.33738191]
[1744536112371,0.30987187,593.83,592.8,0.33738191]
[1744536112572,0.30987187,593.82,592.8,0.33738191]
[1744536112773,0.29345791,593.83,592.8,0.33738191]
[1744536112972,0.3098985,593.82,592.8,0.33738191]
[1744536113168,0.3098985,593.81,592.8,0.33738191]
[1744536113372,0.3098985,593.82,592.8,0.33738191]
[1744536113672,0.3098985,593.81,592.8,0.33738191]
[1744536113875,0.3098985,593.8,592.8,0.33738191]
[1744536114175,0.3098985,593.79,592.8,0.33738191]
[1744536114474,0.3098985,593.82,592.8,0.33738191]
[1744536114673,0.3098985,593.81,592.8,0.33738191]
[1744536114870,0.3098985,593.86,592.8,0.33738191]
[1744536115075,0.3098985,593.85,592.8,0.33738191]
[1744536115373,0.3098985,593.84,592.8,0.33738191]
[1744536115569,0.3098985,593.83,592.8,0.33738191]
[1744536116876,0.29345668,593.84,592.8,0.33738191]
[1744536117075,0.30988008,593.83,592.8,0.33738191]
[1744536117578,1.62345846,593.87,592.8,0.33738191]
[1744536117878,0.30987991,593.86,592.8,0.33738191]
[1744536118078,0.30987991,593.85,592.8,0.33738191]
[1744536118377,0.30987991,593.84,592.8,0.33738191]
[1744536118578,0.30987991,593.83,592.8,0.33738191]
[1744536120681,1.28668442,593.86,592.8,0.33738191]
[1744536120881,0.30985826,593.85,592.8,0.33738191]
[1744536121681,0.29342822,593.84,592.8,0.33738191]
[1744536121880,0.30985826,593.83,592.8,0.33738191]
[1744536123678,0.30985826,593.82,592.8,0.33738191]
[1744536123877,0.30985826,593.86,592.8,0.33738191]
[1744536124077,0.30985826,593.85,592.8,0.33738191]
[1744536124381,0.30985826,593.84,592.8,0.33738191]
[1744536124581,0.30985826,593.83,592.8,0.33738191]
[1744536124782,0.30985826,593.83,592.81,0.30537708]
[1744536125077,0.30985826,593.83,592.82,0.33737053]
[1744536125479,0.29339482,593.84,592.82,0.33737053]
[1744536125682,0.30977373,593.83,592.82,0.33737053]
[1744536126586,0.30977373,593.86,592.82,0.33737053]
[1744536126778,0.30977373,593.85,592.82,0.33737053]
[1744536126984,0.30977373,593.84,592.82,0.33737053]
[1744536127182,0.30977373,593.86,592.82,0.33737053]
[1744536127483,0.30977373,593.85,592.82,0.33737053]
[1744536127684,0.30977373,593.86,592.82,0.33737053]
[1744536127881,0.30977373,593.85,592.83,0.30533319]
[1744536128085,0.30977373,593.86,592.84,0.33735915]
[1744536128286,0.30977373,593.85,592.85,0.30533319]
[1744536128586,0.30977373,593.84,592.86,0.33734777]
[1744536128788,0.33677404,593.87,592.86,0.33734777]
[1744536128988,0.30978118,593.86,592.87,0.30535372]
[1744536129187,0.30978118,593.86,592.88,0.33733639]
[1744536130788,0.29338988,593.85,592.88,0.33733639]
[1744536130983,0.30978118,593.84,592.88,0.33733639]
[1744536132687,0.30978118,593.86,592.88,0.33733639]
[1744536132887,0.30978118,593.85,592.88,0.33733639]
[1744536133083,0.30978118,593.86,592.88,0.33733639]
[1744536133788,0.60321197,593.85,592.88,0.33733639]
[1744536133989,0.30980973,593.84,592.88,0.33733639]
[1744536135290,0.29340224,593.85,592.88,0.33733639]
[1744536135489,0.30981272,593.84,592.88,0.33733639]
[1744536135686,0.29337009,593.84,592.88,0.33733639]
[1744536135890,0.30981272,593.83,592.88,0.33733639]
[1744536136890,0.29337009,593.84,592.88,0.33733639]
[1744536137090,0.30981386,593.83,592.88,0.33733639]
[1744536138490,0.33677404,593.87,592.88,0.33733639]
[1744536138791,0.3098688,593.86,592.88,0.33733639]
[1744536139592,0.2934208,593.85,592.88,0.33733639]
[1744536139888,0.3098688,593.84,592.88,0.33733639]
[1744536141594,0.3098688,593.83,592.88,0.33733639]
[1744536141789,0.3098688,593.82,592.88,0.33733639]
[1744536141993,0.3098688,593.86,592.88,0.33733639]
[1744536142193,0.3098688,593.85,592.88,0.33733639]
[1744536142494,0.3098688,593.84,592.88,0.33733639]
[1744536142695,0.3098688,593.83,592.88,0.33733639]
[1744536142994,0.3098688,593.82,592.88,0.33733639]
[1744536143291,0.3098688,593.81,592.88,0.33733639]
[1744536143494,0.3098688,593.83,592.88,0.33733639]
[1744536143695,0.3098688,593.82,592.88,0.33733639]
[1744536143893,0.3098688,593.83,592.88,0.33733639]
[1744536144190,0.3098688,593.82,592.88,0.33733639]
[1744536144396,0.3098688,593.83,592.88,0.33733639]
[1744536144695,0.3098688,593.82,592.88,0.33733639]
[1744536144894,0.3098688,593.81,592.88,0.33733639]
[1744536145097,0.3098688,593.86,592.88,0.33733639]
[1744536145397,0.33677404,593.87,592.88,0.33733639]
[1744536145398,0.3098688,593.85,592.88,0.33733639]
[1744536145695,0.3098688,593.84,592.88,0.33733639]
[1744536145897,0.3098688,593.83,592.88,0.33733639]
[1744536146195,0.3098688,593.82,592.88,0.33733639]
[1744536146394,0.3098688,593.84,592.88,0.33733639]
[1744536146597,0.3098688,593.83,592.88,0.33733639]
[1744536146793,0.3098688,593.84,592.88,0.33733639]
[1744536149605,0.29349132,593.85,592.88,0.33733639]
[1744536149799,0.30981762,593.84,592.88,0.33733639]
[1744536150599,0.30981762,593.83,592.88,0.33733639]
[1744536150802,0.30981762,593.86,592.88,0.33733639]
[1744536151101,0.30981762,593.85,592.88,0.33733639]
[1744536151302,0.30981762,593.86,592.88,0.33733639]
[1744536151702,0.29344925,593.84,592.88,0.33733639]
[1744536151902,0.30981762,593.83,592.88,0.33733639]
[1744536153798,0.29338493,593.82,592.88,0.33733639]
[1744536153999,0.30981762,593.81,592.88,0.33733639]
[1744536154405,0.29338493,593.82,592.88,0.33733639]
[1744536154602,0.30982374,593.81,592.88,0.33733639]
[1744536159605,0.30982374,593.86,592.88,0.33733639]
[1744536160810,0.29341461,593.85,592.88,0.33733639]
[1744536161111,0.30980902,593.84,592.88,0.33733639]
[1744536162611,0.33677404,593.87,592.88,0.33733639]
[1744536162612,0.30980902,593.86,592.88,0.33733639]
[1744536162813,0.30980902,593.85,592.88,0.33733639]
[1744536163006,0.30980902,593.86,592.88,0.33733639]
[1744536163614,0.2934109,593.85,592.88,0.33733639]
[1744536163810,0.30980902,593.84,592.88,0.33733639]
[1744536165515,0.30980902,593.86,592.88,0.33733639]
[1744536165810,0.29340843,593.83,592.88,0.33733639]
[1744536166114,0.30980902,593.82,592.88,0.33733639]
[1744536167620,0.29340843,593.83,592.88,0.33733639]
[1744536167826,0.30981714,593.82,592.88,0.33733639]
[1744536168521,0.30981714,593.86,592.88,0.33733639]
[1744536168724,0.29337751,593.81,592.88,0.33733639]
[1744536168917,0.30981714,593.8,592.88,0.33733639]
[1744536174122,0.30984687,593.84,592.88,0.33733639]
[1744536174522,0.30984687,593.86,592.88,0.33733639]
[1744536174826,0.30984687,593.85,592.88,0.33733639]
[1744536175026,0.30984687,593.86,592.88,0.33733639]
[1744536175325,0.33677404,593.87,592.88,0.33733639]
[1744536175326,0.30984687,593.85,592.88,0.33733639]
[1744536175521,0.2934542,593.85,592.88,0.33733639]
[1744536175727,0.30984687,593.84,592.88,0.33733639]
[1744536177226,0.30986168,593.83,592.88,0.33733639]
[1744536177427,0.30986168,593.84,592.88,0.33733639]
[1744536177624,0.30986168,593.83,592.88,0.33733639]
[1744536177924,0.30986168,593.82,592.88,0.33733639]
[1744536178130,0.30986168,593.86,592.88,0.33733639]
[1744536178629,0.29345668,593.85,592.88,0.33733639]
[1744536178831,0.30986168,593.84,592.88,0.33733639]
[1744536180530,0.30986168,593.86,592.88,0.33733639]
[1744536180729,0.33677404,593.87,592.88,0.33733639]
[1744536181030,0.30986348,593.86,592.88,0.33733639]
[1744536181631,0.29344678,593.85,592.88,0.33733639]
[1744536181825,0.30986348,593.84,592.88,0.33733639]
[1744536183633,0.30986348,593.83,592.88,0.33733639]
[1744536183829,0.30986348,593.86,592.88,0.33733639]
[1744536184530,0.29345791,593.85,592.88,0.33733639]
[1744536184731,0.30986348,593.84,592.88,0.33733639]
[1744536186632,0.30986348,593.86,592.88,0.33733639]
[1744536186831,0.33677404,593.87,592.88,0.33733639]
[1744536187033,0.30986688,593.86,592.88,0.33733639]
[1744536187636,0.29350865,593.85,592.88,0.33733639]
[1744536187838,0.30986688,593.84,592.88,0.33733639]
[1744536189635,0.30986688,593.86,592.88,0.33733639]
[1744536189837,0.30986688,593.85,592.88,0.33733639]
[1744536190032,0.30986688,593.86,592.88,0.33733639]
[1744536190333,0.30986688,593.85,592.88,0.33733639]
[1744536190538,0.30986688,593.86,592.88,0.33733639]
[1744536190739,0.60336563,593.85,592.88,0.33733639]
[1744536191033,0.30986688,593.84,592.88,0.33733639]
[1744536191832,0.3098815,593.83,592.88,0.33733639]
[1744536192036,0.3098815,593.82,592.88,0.33733639]
[1744536192236,0.3098815,593.84,592.88,0.33733639]
[1744536192433,0.3098815,593.83,592.88,0.33733639]
[1744536192636,0.3098815,593.82,592.88,0.33733639]
[1744536192841,0.3098815,593.86,592.88,0.33733639]
[1744536193032,0.3098815,593.85,592.88,0.33733639]
[1744536193233,0.3098815,593.84,592.88,0.33733639]
[1744536193433,0.30987481,593.83,592.88,0.33733639]
[1744536193633,0.29346657,593.83,592.88,0.33733639]
[1744536193834,0.30987481,593.82,592.88,0.33733639]
[1744536195035,0.29346657,593.83,592.88,0.33733639]
[1744536195239,0.30987254,593.82,592.88,0.33733639]
[1744536195739,0.30987254,593.81,592.88,0.33733639]
[1744536196035,0.30987254,593.8,592.88,0.33733639]
[1744536196239,0.30987254,593.86,592.88,0.33733639]
[1744536196434,0.30987254,593.85,592.88,0.33733639]
[1744536196638,0.30987254,593.84,592.88,0.33733639]
[1744536196840,0.30987254,593.83,592.88,0.33733639]
[1744536197039,0.30987254,593.84,592.88,0.33733639]
[1744536197236,0.30987254,593.83,592.88,0.33733639]
[1744536197441,0.30987254,593.84,592.88,0.33733639]
[1744536198542,0.30987254,593.83,592.88,0.33733639]
[1744536198841,0.30987254,593.82,592.88,0.33733639]
[1744536199037,0.30987254,593.86,592.88,0.33733639]
[1744536199235,0.30987254,593.85,592.88,0.33733639]
[1744536199437,0.30987254,593.84,592.88,0.33733639]
[1744536199636,0.30987254,593.83,592.88,0.33733639]
[1744536200642,0.30987254,593.82,592.88,0.33733639]
[1744536200842,0.30987254,593.83,592.88,0.33733639]
[1744536201044,0.30987254,593.82,592.88,0.33733639]
[1744536201242,0.30987254,593.83,592.88,0.33733639]
[1744536201443,0.30987254,593.82,592.88,0.33733639]
[1744536201638,0.30987254,593.86,592.88,0.33733639]
[1744536201840,0.30987254,593.85,592.88,0.33733639]
[1744536202345,0.30987254,593.84,592.88,0.33733639]
[1744536202546,0.30987254,593.85,592.88,0.33733639]
[1744536202746,0.60333169,593.84,592.88,0.33733639]
[1744536202947,0.30987254,593.83,592.88,0.33733639]
[1744536203147,0.30987254,593.82,592.88,0.33733639]
[1744536203447,0.30987254,593.81,592.88,0.33733639]
[1744536203747,0.30987254,593.8,592.88,0.33733639]
[1744536203945,0.30987254,593.79,592.88,0.33733639]
[1744536204144,0.30987254,593.83,592.88,0.33733639]
[1744536204342,0.30987254,593.82,592.88,0.33733639]
[1744536204647,0.30987254,593.81,592.88,0.33733639]
[1744536204843,0.30987254,593.8,592.88,0.33733639]
[1744536205044,0.30987254,593.79,592.88,0.33733639]
[1744536205249,0.30987254,593.78,592.88,0.33733639]
[1744536205445,0.30987254,593.77,592.88,0.33733639]
[1744536205647,0.2934641,593.77,592.88,0.33733639]
[1744536205850,0.30987254,593.76,592.88,0.33733639]
[1744536206550,0.2934641,593.77,592.88,0.33733639]
[1744536206754,0.30989988,593.76,592.88,0.33733639]
[1744536207655,1.28668442,593.78,592.88,0.33733639]
[1744536207954,0.30989988,593.77,592.88,0.33733639]
[1744536208654,0.29346781,593.76,592.88,0.33733639]
[1744536208855,0.30989988,593.75,592.88,0.33733639]
[1744536210551,0.30989988,593.76,592.88,0.33733639]
[1744536210754,0.29343935,593.74,592.88,0.33733639]
[1744536210959,0.30989988,593.73,592.88,0.33733639]
[1744536213561,0.30989988,593.77,592.88,0.33733639]
[1744536213762,0.29346286,593.72,592.88,0.33733639]
[1744536213960,0.30989988,593.71,592.88,0.33733639]
[1744536214759,0.29346286,593.72,592.88,0.33733639]
[1744536215062,0.30989184,593.71,592.88,0.33733639]
[1744536216661,0.60333614,593.7,592.88,0.33733639]
[1744536216859,0.30989184,593.69,592.88,0.33733639]
[1744536218665,0.2934443,593.7,592.88,0.33733639]
[1744536218866,0.30989166,593.69,592.88,0.33733639]
[1744536219766,0.29344678,593.68,592.88,0.33733639]
[1744536220162,0.30989166,593.67,592.88,0.33733639]
[1744536220766,0.30989166,593.67,592.49,0.29347895]
[1744536220971,0.30989166,593.67,592.5,0.64313417]
[1744536221168,0.30989166,593.67,592.51,0.33754704]
[1744536221369,0.30989166,593.67,592.52,0.30558143]
[1744536221568,0.30989166,593.67,592.53,0.33753565]
[1744536221770,0.30989166,593.67,592.54,0.30558143]
[1744536221965,0.30989166,593.67,592.55,0.33752425]
[1744536222168,0.30989166,593.67,592.56,0.30558143]
[1744536222368,0.30989166,593.67,592.57,0.33751286]
[1744536222565,0.30989166,593.67,592.58,0.30558143]
[1744536225669,0.30989166,593.73,592.58,0.30558143]
[1744536225868,0.29345791,593.66,592.58,0.30558143]
[1744536226168,0.30989166,593.65,592.58,0.30558143]
[1744536226369,1.28668442,593.73,592.57,0.33751286]
[1744536226370,0.30990355,593.64,592.59,0.30557859]
[1744536226573,0.30990355,593.72,592.58,0.30557859]
[1744536226871,0.29345173,593.63,592.58,0.30557859]
[1744536227174,0.30990355,593.62,592.58,0.30557859]
[1744536227371,0.29345296,593.62,592.58,0.30557859]
[1744536227570,0.30990355,593.61,592.58,0.30557859]
[1744536227871,0.29345296,593.62,592.58,0.30557859]
[1744536228076,0.30990324,593.61,592.57,0.33751286]
[1744536228376,0.30990324,593.61,592.58,0.30557828]
[1744536228577,0.30990324,593.72,592.58,0.30557828]
[1744536229073,0.30990324,593.71,592.58,0.30557828]
[1744536229272,0.30990324,593.73,592.58,0.30557828]
[1744536229575,0.30990324,593.72,592.58,0.30557828]
[1744536229872,0.30990324,593.71,592.57,0.33751286]
[1744536231672,0.30990324,593.86,592.57,0.33751286]
[1744536231876,0.33678538,593.85,592.57,0.33751286]
[1744536232077,0.30990324,593.84,592.57,0.33751286]
[1744536232278,0.33679672,593.83,592.57,0.33751286]
[1744536232471,0.30990324,593.82,592.57,0.33751286]
[1744536232674,0.33680806,593.81,592.57,0.33751286]
[1744536232874,0.30990324,593.8,592.57,0.33751286]
[1744536233077,0.33681941,593.79,592.57,0.33751286]
[1744536233371,0.30990324,593.78,592.57,0.33751286]
[1744536233578,0.33683075,593.77,592.57,0.33751286]
[1744536233778,0.30990324,593.76,592.57,0.33751286]
[1744536233979,0.64673967,593.76,592.57,0.33751286]
[1744536234176,0.30990324,593.75,592.57,0.33751286]
[1744536234874,0.29351608,593.74,592.57,0.33751286]
[1744536235078,0.30990324,593.73,592.57,0.33751286]
[1744536237282,0.29351608,593.74,592.57,0.33751286]
[1744536237581,0.30993112,593.73,592.57,0.33751286]
[1744536237782,0.30993112,593.75,592.57,0.33751286]
[1744536237977,0.30993112,593.72,592.57,0.33751286]
[1744536238181,0.30993112,593.74,592.57,0.33751286]
[1744536238377,0.30993112,593.73,592.57,0.33751286]
[1744536238677,0.30993112,593.72,592.57,0.33751286]
[1744536239582,0.29348019,593.73,592.57,0.33751286]
[1744536239783,0.30993318,593.72,592.57,0.33751286]
[1744536240682,0.30993318,593.71,592.57,0.33751286]
[1744536240878,0.33683643,593.76,592.57,0.33751286]
[1744536241080,0.3099288,593.75,592.57,0.33751286]
[1744536241682,0.29351608,593.74,592.57,0.33751286]
[1744536241987,0.3099288,593.73,592.57,0.33751286]
[1744536242186,0.3099288,593.73,592.58,0.3056043]
[1744536243586,0.3099288,593.75,592.58,0.3056043]
[1744536243788,0.29346534,593.72,592.58,0.3056043]
[1744536244090,0.3099288,593.71,592.58,0.3056043]
[1744536244582,0.3099288,593.71,592.57,0.33751286]
[1744536245787,0.30993166,593.7,592.57,0.33751286]
[1744536245988,0.30993166,593.71,592.57,0.33751286]
[1744536246187,0.30993166,593.7,592.57,0.33751286]
[1744536246382,0.30993166,593.69,592.57,0.33751286]
[1744536246584,0.30993166,593.71,592.57,0.33751286]
[1744536246783,0.30993166,593.7,592.57,0.33751286]
[1744536246983,0.30993166,593.75,592.57,0.33751286]
[1744536247184,0.30993166,593.74,592.57,0.33751286]
[1744536247487,0.30993217,593.73,592.57,0.33751286]
[1744536247684,0.2935136,593.73,592.57,0.33751286]
[1744536247888,0.30993217,593.72,592.57,0.33751286]
[1744536249090,0.30993191,593.71,592.57,0.33751286]
[1744536249285,0.30993191,593.72,592.57,0.33751286]
[1744536249686,0.30993191,593.75,592.57,0.33751286]
[1744536249885,0.2934839,593.71,592.57,0.33751286]
[1744536250091,0.30993191,593.7,592.57,0.33751286]
[1744536250593,0.2934839,593.71,592.57,0.33751286]
[1744536250794,0.30992904,593.7,592.57,0.33751286]
[1744536252190,0.2934839,593.71,592.57,0.33751286]
[1744536252395,0.30991504,593.7,592.57,0.33751286]
[1744536252695,0.30991504,593.69,592.57,0.33751286]
[1744536252889,0.30991504,593.75,592.57,0.33751286]
[1744536253094,0.30991504,593.74,592.57,0.33751286]
[1744536253295,0.30991504,593.75,592.57,0.33751286]
[1744536253594,0.30991504,593.74,592.57,0.33751286]
[1744536253795,0.29349875,593.73,592.57,0.33751286]
[1744536253995,0.30990678,593.72,592.57,0.33751286]
[1744536254692,0.29349875,593.73,592.57,0.33751286]
[1744536255396,0.33683643,593.76,592.57,0.33751286]
[1744536256597,0.29340101,593.75,592.57,0.33751286]
[1744536258498,0.33683643,593.76,592.57,0.33751286]
[1744536259599,0.29338864,593.75,592.57,0.33751286]
[1744536259993,0.30983015,593.74,592.58,0.30550535]
[1744536260196,0.30983015,593.74,592.6,0.33749578]
[1744536260398,0.30983015,593.74,592.61,0.30550535]
[1744536260598,0.30983015,593.74,592.62,0.33748439]
[1744536260798,0.30983015,593.74,592.63,0.30550535]
[1744536260999,0.30983015,593.74,592.64,0.337473]
[1744536261195,0.30983015,593.74,592.65,0.30550535]
[1744536261400,0.30983015,593.74,592.66,0.33746161]
[1744536261601,0.30983015,593.75,592.67,0.30550535]
[1744536261797,0.30983015,593.73,592.68,0.33745022]
[1744536262001,0.30983015,593.72,592.69,0.30550535]
[1744536262200,0.30983015,593.71,592.7,0.33743883]
[1744536262400,0.30983015,593.75,592.71,0.30550535]
[1744536262598,0.6302226,593.76,592.71,0.30550535]
[1744536262599,0.30983015,593.74,592.72,0.33742745]
[1744536262802,0.6302226,593.76,592.73,0.30550535]
[1744536262803,0.30983015,593.75,592.73,0.30550535]
[1744536263004,0.30983015,593.74,592.74,0.33741606]
[1744536263198,0.30983015,593.75,592.75,0.30550535]
[1744536263499,0.30983015,593.74,592.75,0.30550535]
[1744536263703,0.30983015,593.75,592.75,0.30550535]
[1744536264004,0.30983015,593.75,592.76,0.33740468]
[1744536264199,0.30983015,593.75,592.77,0.30550535]
[1744536264503,0.30983015,593.75,592.78,0.33739329]
[1744536264697,0.30983015,593.75,592.79,0.30550535]
[1744536264900,0.30983015,593.75,592.79,0.64289295]
[1744536265096,0.30983015,593.75,592.79,0.3373876]
[1744536265305,0.33683643,593.76,592.79,0.3373876]
[1744536265502,0.33683643,593.76,592.27,1.07357351]
[1744536265698,0.29338988,593.75,592.29,0.33767242]
[1744536265898,0.60329201,593.75,592.47,0.29338988]
[1744536266197,0.60329201,593.75,592.48,0.33756413]
[1744536266198,0.30990213,593.74,592.48,0.33756413]
[1744536267604,0.30990213,593.75,592.48,0.33756413]
[1744536268606,0.33683643,593.76,592.48,0.33756413]
[1744536268806,0.29346534,593.74,592.49,0.30559021]
[1744536269003,0.30991518,593.73,592.5,0.33755274]
[1744536269202,0.30991518,593.73,592.51,0.30559021]
[1744536269503,0.30991518,593.73,592.52,0.33754134]
[1744536269700,0.30991518,593.73,592.53,0.30559021]
[1744536270007,0.30991518,593.73,592.54,0.33752995]
[1744536270698,0.30991518,593.75,592.54,0.33752995]
[1744536271706,0.29353465,593.74,592.54,0.33752995]
[1744536272108,0.30991232,593.73,592.54,0.33752995]
[1744536273602,0.33683643,593.76,592.54,0.33752995]
[1744536273807,0.29346781,593.72,592.54,0.33752995]
[1744536274008,0.30991041,593.71,592.54,0.33752995]
[1744536276410,0.30991041,593.71,592.55,0.30558664]
[1744536276710,0.30991041,593.7,592.55,0.64311089]
[1744536276910,0.33683643,593.76,592.55,0.33752425]
[1744536277111,0.30990854,593.75,592.56,0.30558356]
[1744536277712,0.29345544,593.74,592.56,0.30558356]
[1744536277906,0.30990854,593.73,592.56,0.30558356]
[1744536278613,0.29345544,593.74,592.55,0.33752425]
[1744536278912,0.30990806,593.73,592.56,0.30558309]
[1744536279714,0.30990806,593.75,592.56,0.30558309]
[1744536280814,0.29345544,593.74,592.56,0.30558309]
[1744536281013,0.30990806,593.73,592.56,0.30558309]
[1744536282617,0.30990806,593.75,592.56,0.30558309]
[1744536282818,0.29345791,593.72,592.56,0.30558309]
[1744536283019,0.30990806,593.71,592.56,0.30558309]
[1744536283820,0.30990806,593.71,592.56,0.64310165]
[1744536284019,0.29345791,593.72,592.57,0.33751286]
[1744536284220,0.30989607,593.71,592.58,0.30557112]
[1744536284420,0.30989607,593.71,592.59,0.33750147]
[1744536284621,0.30989607,593.71,592.6,0.30557112]
[1744536284818,0.30989607,593.71,592.61,0.33749008]
[1744536285022,0.30989607,593.71,592.62,0.30557112]
[1744536285217,0.30989607,593.71,592.63,0.33747869]
[1744536285421,0.33683643,593.76,592.63,0.33747869]
[1744536285623,0.30988908,593.75,592.64,0.30556415]
[1744536285823,0.29342946,593.7,592.64,0.64303715]
[1744536286122,0.30988908,593.69,592.65,0.30556415]
[1744536288724,0.29342946,593.68,592.64,0.337473]
[1744536288921,0.29342946,593.68,592.65,0.30557136]
[1744536289223,0.30989631,593.67,592.65,0.30557136]
[1744536291721,0.30989631,593.66,592.65,0.30557136]
[1744536292022,0.30989891,593.65,592.66,0.30557394]
[1744536292225,0.30989891,593.64,592.67,0.30557394]
[1744536292425,0.30989891,593.75,592.65,0.30557394]
[1744536292622,0.30989891,593.63,592.64,0.337473]
[1744536292827,0.30989891,593.62,592.65,0.30557395]
[1744536293528,0.29342203,593.63,592.64,0.337473]
[1744536293724,0.30989865,593.62,592.65,0.3055737]
[1744536294629,0.30989865,593.75,592.65,0.3055737]
[1744536294926,0.30989865,593.74,592.65,0.3055737]
[1744536295128,0.30989865,593.75,592.65,0.3055737]
[1744536295328,0.30989865,593.74,592.65,0.3055737]
[1744536295629,0.30989865,593.73,592.65,0.3055737]
[1744536295827,0.29342203,593.74,592.65,0.3055737]
[1744536296025,0.30989865,593.73,592.65,0.3055737]
[1744536296630,0.29342203,593.74,592.64,0.337473]
[1744536296825,0.30989639,593.73,592.65,0.30557144]
[1744536297426,0.33683643,593.76,592.64,0.337473]
[1744536297631,0.30989678,593.75,592.65,0.30557182]
[1744536298327,0.33683643,593.76,592.64,0.337473]
[1744536298530,0.3098964,593.75,592.65,0.30557145]
[1744536298731,0.60335679,593.75,592.65,0.30557145]
[1744536298927,0.3098964,593.74,592.65,0.30557145]
[1744536300033,0.30989633,593.73,592.66,0.30557137]
[1744536300333,0.30989633,593.72,592.67,0.30557137]
[1744536300632,0.30989633,593.71,592.64,0.337473]
[1744536300834,0.29342327,593.71,592.65,0.30557338]
[1744536301033,0.30989633,593.7,592.65,0.30557338]
[1744536302634,0.29342327,593.71,592.64,0.337473]
[1744536302934,0.30989678,593.7,592.65,0.30557183]
[1744536303636,0.30989678,593.73,592.66,0.33746161]
[1744536303829,0.30989678,593.73,592.67,0.30557183]
[1744536304030,0.30989678,593.73,592.68,0.33745022]
[1744536304636,0.29344678,593.72,592.68,0.33745022]
[1744536304836,0.30989678,593.71,592.68,0.33745022]
[1744536306637,0.30989678,593.75,592.68,0.33745022]
[1744536306838,0.60333119,593.7,592.68,0.33745022]
[1744536307034,0.30989678,593.69,592.68,0.33745022]
[1744536309736,0.30989678,593.68,592.68,0.33745022]
[1744536310041,0.30989678,593.67,592.68,0.33745022]
[1744536310335,0.30989678,593.66,592.69,0.30555736]
[1744536310542,0.33683643,593.76,592.68,0.33745022]
[1744536310740,0.29341709,593.65,592.69,0.30555746]
[1744536310936,0.30988229,593.64,592.69,0.30555746]
[1744536311141,0.30988229,593.75,592.69,0.30555746]
[1744536312242,0.29341709,593.74,592.69,0.30555746]
[1744536312444,0.30988229,593.73,592.69,0.30555746]
[1744536314343,0.30988229,593.73,592.68,0.33745022]
[1744536315739,0.30988229,593.75,592.68,0.33745022]
[1744536315945,0.29345915,593.72,592.68,0.33745022]
[1744536316144,0.30988229,593.71,592.68,0.33745022]
[1744536318645,0.30988229,593.75,592.68,0.33745022]
[1744536318848,0.29348019,593.7,592.68,0.33745022]
[1744536319043,0.30988229,593.69,592.68,0.33745022]
[1744536320048,0.29348019,593.7,592.68,0.33745022]
[1744536320248,0.30987364,593.69,592.68,0.33745022]
[1744536321651,0.33683643,593.76,592.68,0.33745022]
[1744536321853,0.30988513,593.75,592.68,0.33745022]
[1744536322753,0.29348019,593.74,592.68,0.33745022]
[1744536323053,0.30988513,593.73,592.68,0.33745022]
[1744536323253,0.29348019,593.74,592.68,0.33745022]
[1744536323454,0.30987631,593.73,592.68,0.33745022]
[1744536324156,0.30987631,593.73,592.69,0.30555757]
[1744536324753,0.30987631,593.75,592.69,0.30555757]
[1744536324949,0.30988235,593.74,592.7,0.30555744]
[1744536325254,0.30988235,593.75,592.69,0.30555744]
[1744536325457,0.30988235,593.74,592.68,0.33745022]
[1744536325755,0.30988235,593.73,592.69,0.30556492]
[1744536326450,0.29341709,593.74,592.68,0.33745022]
[1744536326756,0.29341709,593.74,592.69,0.30555776]
[1744536326757,0.30988269,593.73,592.69,0.30555776]
[1744536327655,0.30988269,593.75,592.69,0.30555776]